bitfinex/quotes_BTCUSD_20240613
["timestamp","ask_amount","ask_price","bid_price","bid_amount"]
[1718290981357,0.59392,67280.0,67279.0,0.27137993]
[1718290981586,0.59392,67280.0,67279.0,0.52001393]
[1718290981785,0.59392,67280.0,67279.0,0.77137993]
[1718290981993,0.59392,67280.0,67279.0,0.87137993]
[1718290982227,0.59892,67280.0,67279.0,0.27137993]
[1718290982427,0.59892,67280.0,67279.0,0.42001393]
[1718290982637,0.59892,67280.0,67279.0,0.41901393]
[1718290982945,0.59392,67280.0,67279.0,1.06901393]
[1718290983146,0.59392,67280.0,67279.0,1.81338293]
[1718290983346,0.59392,67280.0,67279.0,1.48641393]
[1718290983630,0.59992,67280.0,67279.0,1.79668293]
[1718290983839,0.59492,67280.0,67279.0,1.79668293]
[1718290984045,0.59492,67280.0,67279.0,1.62268618]
[1718290984264,0.41032,67280.0,67279.0,2.21468418]
[1718290984465,0.41032,67280.0,67279.0,2.24438418]
[1718290984685,0.40932,67280.0,67279.0,2.23038418]
[1718290985093,0.40932,67280.0,67279.0,2.71557276]
[1718290985722,0.33932,67280.0,67279.0,2.9505489]
[1718290985934,0.33832,67280.0,67279.0,2.7673399]
[1718290986353,0.33932,67280.0,67279.0,2.7813399]
[1718290986552,0.0967,67327.0,67313.0,0.02]
[1718290986773,0.0967,67327.0,67322.0,0.07215996]
[1718290987212,0.0967,67327.0,67317.0,0.02]
[1718290987421,0.0967,67327.0,67317.0,0.01]
[1718290987633,0.0967,67327.0,67315.0,0.07215996]
[1718290987634,0.148538,67323.0,67315.0,0.07215996]
[1718290987898,0.0967,67327.0,67308.0,0.4718]
[1718290988119,0.0967,67327.0,67315.0,0.07215996]
[1718290988120,0.0977,67327.0,67315.0,0.07215996]
[1718290988333,0.0977,67327.0,67322.0,0.07215996]
[1718290988932,0.0977,67327.0,67317.0,0.00593019]
[1718290989175,0.148537,67324.0,67317.0,0.17026135]
[1718290989390,0.0977,67327.0,67317.0,0.17026135]
[1718290989391,0.001,67327.0,67324.0,0.07215996]
[1718290989594,0.001,67327.0,67326.0,0.268531]
[1718290989794,0.1034,67342.0,67326.0,0.268531]
[1718290989795,0.1034,67342.0,67335.0,0.01]
[1718290990030,0.1213,67343.0,67338.0,0.07215996]
[1718290990346,0.1213,67343.0,67317.0,0.008]
[1718290990347,0.1018,67347.0,67341.0,0.01]
[1718290990572,0.1192,67350.0,67342.0,0.14431993]
[1718290990779,0.1192,67350.0,67343.0,0.01]
[1718290990971,0.0986,67353.0,67343.0,0.01]
[1718290991173,0.1275,67358.0,67348.0,0.08215996]
[1718290991394,0.155829,67363.0,67351.0,0.01]
[1718290991596,0.148449,67363.0,67351.0,0.15431993]
[1718290991817,0.10598,67364.0,67351.0,0.14431993]
[1718290991818,0.00738,67360.0,67351.0,0.14431993]
[1718290992019,0.00738,67352.0,67336.0,0.4818]
[1718290992221,0.01,67363.0,67336.0,0.4818]
[1718290992222,0.00738,67348.0,67337.0,0.14431993]
[1718290992394,0.1006,67347.0,67337.0,0.14431993]
[1718290992594,0.250016,67354.0,67343.0,0.01]
[1718290992822,0.101546,67354.0,67344.0,0.0159392]
[1718290993025,0.101546,67354.0,67347.0,0.07215996]
[1718290993026,0.000946,67354.0,67347.0,0.07215996]
[1718290993364,0.000946,67354.0,67340.0,0.27215996]
[1718290993563,0.000946,67354.0,67348.0,0.21647989]
[1718290993772,0.000946,67354.0,67348.0,0.14431993]
[1718290993911,0.148475,67351.0,67348.0,0.14431993]
[1718290994298,0.000946,67354.0,67348.0,0.14431993]
[1718290994624,0.149416,67354.0,67348.0,0.14431993]
[1718290994837,0.00738,67352.0,67348.0,0.14431993]
[1718290995245,0.155854,67352.0,67348.0,0.14431993]
[1718290995448,0.00738,67352.0,67348.0,0.14431993]
[1718290995652,0.00738,67348.0,67340.0,0.07215996]
[1718290995858,0.000946,67354.0,67341.0,0.14431993]
[1718290995859,0.00738,67344.0,67341.0,0.14431993]
[1718290996116,0.00738,67348.0,67342.0,0.07215996]
[1718290996255,0.000946,67354.0,67343.0,0.14431993]
[1718290996256,0.00738,67349.0,67343.0,0.14431993]
[1718290996462,0.00738,67352.0,67343.0,0.14431993]
[1718290996664,0.000946,67354.0,67343.0,0.14431993]
[1718290996665,0.00738,67348.0,67343.0,0.14431993]
[1718290997275,0.00738,67340.0,67336.0,0.4718]
[1718290997487,0.00738,67342.0,67336.0,0.61611993]
[1718290997688,0.00738,67342.0,67341.0,0.07215996]
[1718290997888,0.155875,67342.0,67341.0,0.07215996]
[1718290998674,0.155886,67337.0,67336.0,0.4718]
[1718290998873,0.10838,67344.0,67333.0,0.07215996]
[1718290999073,0.00738,67338.0,67334.0,0.14431993]
[1718290999207,0.00738,67340.0,67334.0,0.14431993]
[1718290999403,0.101,67344.0,67334.0,0.14431993]
[1718290999651,0.256871,67344.0,67343.0,0.07215996]
[1718290999854,0.00738,67336.0,67334.0,0.14431993]
[1718291000029,0.148511,67335.0,67334.0,0.14431993]
[1718291000512,0.148504,67338.0,67334.0,0.14431993]
[1718291001560,0.59404,67337.0,67334.0,0.14431993]
[1718291002175,0.59404,67337.0,67333.0,0.07215996]
[1718291002176,0.00738,67336.0,67333.0,0.07215996]
[1718291002403,0.00738,67328.0,67326.0,0.059409]
[1718291002606,0.59404,67335.0,67326.0,0.21372893]
[1718291002808,0.148514,67334.0,67331.0,0.07215996]
[1718291003046,0.742557,67333.0,67331.0,0.07215996]
[1718291003447,0.59404,67333.0,67331.0,0.07215996]
[1718291003695,0.59404,67333.0,67332.0,0.14431993]
[1718291004523,0.00738,67332.0,67331.0,0.021]
[1718291004743,1.046972,67332.0,67331.0,0.01]
[1718291004915,0.148533,67325.0,67324.0,0.4718]
[1718291005379,0.155913,67325.0,67324.0,0.4718]
[1718291005559,0.155913,67325.0,67315.0,0.07215996]
[1718291005560,0.155917,67323.0,67315.0,0.07215996]
[1718291005817,0.155933,67316.0,67315.0,0.07215996]
[1718291006037,0.148553,67316.0,67315.0,0.07215996]
[1718291006248,0.155933,67316.0,67315.0,0.07215996]
[1718291006466,0.749973,67316.0,67315.0,0.07215996]
[1718291006678,0.742593,67316.0,67315.0,0.07215996]
[1718291007277,0.59404,67316.0,67315.0,0.07215996]
[1718291007944,0.59404,67316.0,67315.0,0.22947989]
[1718291008299,0.59404,67316.0,67315.0,0.24147989]
[1718291008497,0.59404,67316.0,67315.0,0.52326453]
[1718291009471,0.59404,67316.0,67315.0,0.51326453]
[1718291009674,0.59404,67316.0,67315.0,0.36470953]
[1718291009883,0.742593,67316.0,67315.0,0.35170953]
[1718291010086,0.742593,67316.0,67315.0,0.22847989]
[1718291010289,0.742593,67316.0,67315.0,0.22947989]
[1718291010518,0.59404,67316.0,67315.0,0.22947989]
[1718291010740,0.59404,67316.0,67315.0,0.24147989]
[1718291010953,0.742593,67316.0,67315.0,0.09715996]
[1718291011152,0.749973,67316.0,67315.0,0.09715996]
[1718291011355,0.749973,67316.0,67315.0,0.08515996]
[1718291011762,0.749973,67316.0,67315.0,0.07615996]
[1718291012206,0.749973,67316.0,67315.0,0.07215996]
[1718291012411,0.749973,67316.0,67315.0,0.19539867]
[1718291012690,1.290779,67316.0,67315.0,0.12323871]
[1718291012896,1.290779,67316.0,67306.0,0.07215996]
[1718291012897,0.148572,67307.0,67306.0,0.07215996]
[1718291013132,0.148572,67307.0,67306.0,0.21647989]
[1718291013325,0.749992,67307.0,67306.0,0.21647989]
[1718291013531,0.749992,67307.0,67306.0,0.07215996]
[1718291014275,0.148595,67297.0,67296.0,0.27215996]
[1718291014474,0.59404,67307.0,67296.0,0.53974265]
[1718291014475,0.00738,67303.0,67296.0,0.53974265]
[1718291014741,0.148589,67300.0,67297.0,0.26758269]
[1718291014968,0.148589,67300.0,67298.0,0.12326276]
[1718291014969,0.59404,67299.0,67298.0,0.12326276]
[1718291015182,0.59404,67299.0,67298.0,0.26758269]
[1718291016335,0.74263,67299.0,67298.0,0.26758269]
[1718291016749,0.59404,67299.0,67298.0,0.26758269]
[1718291017593,0.74263,67299.0,67298.0,0.26758269]
[1718291017813,1.047191,67299.0,67298.0,0.13726276]
[1718291018023,1.047191,67299.0,67298.0,0.028]
[1718291018273,0.74263,67299.0,67298.0,0.028]
[1718291018480,0.59404,67299.0,67298.0,0.028]
[1718291018866,0.59404,67299.0,67298.0,0.014]
[1718291019433,0.74263,67299.0,67298.0,0.014]
[1718291019636,0.59404,67299.0,67298.0,0.014]
[1718291019807,0.59404,67299.0,67298.0,0.16426284]
[1718291020008,0.59404,67299.0,67298.0,0.14431993]
[1718291020438,0.59404,67299.0,67298.0,0.16531993]
[1718291020643,0.59404,67299.0,67298.0,0.27858505]
[1718291020844,0.59404,67299.0,67298.0,0.27758505]
[1718291021278,0.59404,67299.0,67298.0,0.28758505]
[1718291021484,0.59404,67299.0,67298.0,0.13326512]
[1718291021638,0.99411,67299.0,67298.0,0.01]
[1718291021844,0.99411,67299.0,67298.0,0.021]
[1718291022424,1.291291,67299.0,67298.0,0.021]
[1718291022833,0.99411,67299.0,67298.0,0.021]
[1718291023251,1.291291,67299.0,67298.0,0.021]
[1718291023666,0.99411,67299.0,67298.0,0.021]
[1718291023883,1.291291,67299.0,67298.0,0.021]
[1718291024234,1.598472,67299.0,67298.0,0.021]
[1718291024488,1.301291,67299.0,67298.0,0.021]
[1718291024837,1.598472,67299.0,67298.0,0.021]
[1718291025243,1.598472,67299.0,67286.0,0.4718]
[1718291025244,0.00738,67291.0,67286.0,0.4718]
[1718291025444,0.00738,67291.0,67285.0,0.07215996]
[1718291025763,0.148615,67288.0,67285.0,0.07215996]
[1718291025957,0.148619,67286.0,67285.0,0.07215996]
[1718291026513,0.59404,67286.0,67285.0,0.07215996]
[1718291026677,0.59404,67286.0,67285.0,0.21647989]
[1718291028368,0.59404,67286.0,67285.0,0.23347989]
[1718291028571,0.59404,67286.0,67285.0,0.356772]
[1718291028790,0.59404,67286.0,67285.0,0.39210089]
[1718291029036,0.59404,67286.0,67285.0,0.51538492]
[1718291029273,0.59404,67286.0,67285.0,0.35676392]
[1718291029482,0.59404,67286.0,67285.0,0.36676392]
[1718291029688,0.59404,67286.0,67285.0,0.51538492]
[1718291029885,0.59404,67286.0,67285.0,0.36676392]
[1718291030498,0.59404,67286.0,67285.0,0.35676392]
[1718291030905,0.742659,67286.0,67285.0,0.21244399]
[1718291031137,0.750039,67286.0,67285.0,0.14028403]
[1718291031341,0.742659,67286.0,67285.0,0.14028403]
[1718291031532,0.59404,67286.0,67285.0,0.14028403]
[1718291032869,0.750039,67286.0,67285.0,0.14028403]
[1718291035131,1.227577,67286.0,67285.0,0.14028403]
[1718291035535,0.930339,67286.0,67285.0,0.14028403]
[1718291035771,1.227577,67286.0,67285.0,0.14028403]
[1718291036458,1.227577,67286.0,67285.0,0.017]
[1718291037072,0.930339,67286.0,67285.0,0.017]
[1718291037277,0.750039,67286.0,67285.0,0.017]
[1718291037693,0.59404,67286.0,67285.0,0.017]
[1718291037856,0.742659,67286.0,67285.0,0.017]
[1718291038298,0.59404,67286.0,67285.0,0.017]
[1718291039331,0.750039,67286.0,67285.0,0.017]
[1718291039549,0.742659,67286.0,67285.0,0.017]
[1718291039707,0.742659,67286.0,67285.0,0.16131993]
[1718291039708,0.59404,67286.0,67285.0,0.16131993]
[1718291039907,0.742659,67286.0,67285.0,0.017]
[1718291040119,0.855259,67286.0,67285.0,0.017]
[1718291040560,0.862639,67286.0,67285.0,0.017]
[1718291040718,0.70664,67286.0,67285.0,0.017]
[1718291040969,0.59404,67286.0,67285.0,0.017]
[1718291041165,0.59404,67286.0,67285.0,0.16217993]
[1718291042178,0.742659,67286.0,67285.0,0.28547825]
[1718291042384,0.742659,67286.0,67285.0,0.16217993]
[1718291043023,0.742659,67286.0,67285.0,0.01786]
[1718291044623,0.59404,67286.0,67285.0,0.01786]
[1718291044788,0.59404,67286.0,67285.0,0.14116103]
[1718291044995,0.59404,67286.0,67285.0,0.44410196]
[1718291045194,0.59404,67286.0,67285.0,0.29548096]
[1718291045771,0.59404,67286.0,67285.0,0.29049096]
[1718291045977,0.59404,67286.0,67285.0,0.28049096]
[1718291045978,0.742659,67286.0,67285.0,0.28049096]
[1718291046202,0.742659,67286.0,67285.0,0.13617103]
[1718291046203,0.750039,67286.0,67285.0,0.13617103]
[1718291046413,0.750039,67286.0,67285.0,0.28049096]
[1718291046414,0.59404,67286.0,67285.0,0.28049096]
[1718291046824,0.742659,67286.0,67285.0,0.28049096]
[1718291047280,0.59404,67286.0,67285.0,0.28049096]
[1718291049008,0.59404,67286.0,67285.0,0.58875639]
[1718291049620,0.59404,67286.0,67285.0,0.59875639]
[1718291049964,0.59404,67286.0,67285.0,0.84737739]
[1718291050145,0.59404,67286.0,67285.0,1.52392039]
[1718291050524,0.59404,67286.0,67285.0,1.99329574]
[1718291050722,0.59404,67286.0,67285.0,2.32123874]
[1718291050978,0.56103972,67286.0,67285.0,2.44005874]
[1718291051183,0.55359972,67286.0,67285.0,2.42804874]
[1718291051376,0.52059972,67286.0,67285.0,2.78146603]
[1718291051724,0.52159972,67286.0,67285.0,2.79546603]
[1718291051855,0.52159972,67286.0,67285.0,3.09270903]
[1718291051856,0.42824972,67286.0,67285.0,3.09270903]
[1718291052063,0.148534,67325.0,67316.0,0.01]
[1718291052269,0.43295979,67320.0,67317.0,0.12330103]
[1718291052452,0.00738,67323.0,67318.0,0.12330103]
[1718291052651,0.00738,67327.0,67314.0,0.01]
[1718291052893,0.00738,67327.0,67318.0,0.07215996]
[1718291053096,0.148525,67329.0,67318.0,0.08215996]
[1718291053303,0.148527,67328.0,67318.0,0.08215996]
[1718291053457,0.25708,67330.0,67325.0,0.07215996]
[1718291053862,0.25708,67330.0,67319.0,0.14431993]
[1718291054063,0.25708,67330.0,67320.0,0.123234]
[1718291054270,0.25708,67330.0,67321.0,0.123234]
[1718291054475,0.405603,67330.0,67322.0,0.123234]
[1718291054678,0.405603,67330.0,67323.0,0.123234]
[1718291054882,0.405603,67330.0,67324.0,0.123234]
[1718291055105,0.405603,67330.0,67322.0,0.123234]
[1718291055106,0.155912,67326.0,67322.0,0.123234]
[1718291055453,0.155919,67322.0,67321.0,0.14431993]
[1718291055595,0.155919,67322.0,67319.0,0.01]
[1718291055596,0.155924,67320.0,67319.0,0.01]
[1718291056017,0.453012,67320.0,67319.0,0.01]
[1718291056445,0.7601,67320.0,67319.0,0.01]
[1718291056655,0.00738,67310.0,67304.0,0.07215996]
[1718291056870,0.00738,67307.0,67305.0,0.57727972]
[1718291057044,0.00738,67307.0,67305.0,0.14431993]
[1718291057267,0.00738,67306.0,67305.0,0.14431993]
[1718291057473,0.00738,67316.0,67305.0,0.15431993]
[1718291057677,0.00738,67316.0,67315.0,0.07215996]
[1718291057885,0.2437,67320.0,67315.0,0.07215996]
[1718291057886,0.00738,67319.0,67315.0,0.07215996]
[1718291058137,0.00738,67319.0,67315.0,0.21647989]
[1718291058339,0.25108,67320.0,67315.0,0.21647989]
[1718291058756,0.00738,67327.0,67316.0,0.14431993]
[1718291058957,0.15591,67327.0,67324.0,0.07215996]
[1718291059160,0.2402,67328.0,67324.0,0.07215996]
[1718291059336,0.155913,67325.0,67324.0,0.07215996]
[1718291059827,0.148533,67325.0,67324.0,0.07215996]
[1718291060037,0.00738,67327.0,67324.0,0.07215996]
[1718291060202,0.00738,67326.0,67324.0,0.07215996]
[1718291060410,0.155913,67325.0,67324.0,0.07215996]
[1718291060786,0.155913,67325.0,67324.0,0.07315996]
[1718291061015,0.148533,67325.0,67324.0,0.001]
[1718291061568,0.148533,67325.0,67324.0,0.006]
[1718291061780,0.148533,67325.0,67324.0,0.001]
[1718291062196,0.151533,67325.0,67324.0,0.001]
[1718291062393,0.151533,67325.0,67318.0,0.01]
[1718291062595,0.148535,67324.0,67319.0,0.14431993]
[1718291063705,0.148544,67320.0,67319.0,0.14431993]
[1718291063941,0.155924,67320.0,67319.0,0.14431993]
[1718291064148,0.2402,67328.0,67311.0,0.059425]
[1718291064149,0.148561,67312.0,67311.0,0.059425]
[1718291064308,0.148561,67312.0,67311.0,0.14431993]
[1718291064751,0.1291,67314.0,67311.0,0.14431993]
[1718291064914,0.1023,67318.0,67313.0,0.07215996]
[1718291065286,0.1336,67320.0,67313.0,0.21647989]
[1718291065400,0.155928,67319.0,67313.0,0.21647989]
[1718291065631,0.148548,67319.0,67313.0,0.21647989]
[1718291066074,0.00738,67319.0,67313.0,0.21647989]
[1718291066502,0.148551,67317.0,67313.0,0.21647989]
[1718291066908,0.148551,67317.0,67313.0,0.21947989]
[1718291067576,0.148551,67317.0,67313.0,0.21647989]
[1718291067801,0.00738,67319.0,67313.0,0.21647989]
[1718291068158,0.155935,67316.0,67313.0,0.21647989]
[1718291068621,0.10968,67323.0,67314.0,0.14944483]
[1718291068860,0.10968,67323.0,67322.0,0.07215996]
[1718291069046,0.00738,67323.0,67322.0,0.07215996]
[1718291069247,0.14248,67327.0,67322.0,0.07215996]
[1718291069445,0.1351,67327.0,67322.0,0.21647989]
[1718291069671,0.155902,67331.0,67322.0,0.22647989]
[1718291069910,0.1087,67332.0,67330.0,0.07215996]
[1718291070487,0.257218,67332.0,67330.0,0.07215996]
[1718291070712,0.1087,67332.0,67330.0,0.07215996]
[1718291071079,0.155899,67331.0,67323.0,0.14431993]
[1718291071235,0.148519,67331.0,67323.0,0.14431993]
[1718291071443,0.1087,67332.0,67330.0,0.07215996]
[1718291071808,0.148519,67331.0,67330.0,0.07215996]
[1718291072008,0.155899,67331.0,67330.0,0.07215996]
[1718291072413,0.148519,67331.0,67330.0,0.07215996]
[1718291072645,0.155899,67331.0,67330.0,0.07215996]
[1718291072982,0.00738,67331.0,67330.0,0.07215996]
[1718291073182,0.00738,67331.0,67323.0,0.15131993]
[1718291073384,0.1087,67332.0,67323.0,0.15131993]
[1718291073385,0.00738,67330.0,67323.0,0.14431993]
[1718291073987,0.00738,67331.0,67323.0,0.14431993]
[1718291074226,0.1087,67332.0,67329.0,0.07215996]
[1718291074831,0.1087,67332.0,67323.0,0.15431993]
[1718291074832,0.008326,67330.0,67323.0,0.14431993]
[1718291075036,0.00738,67327.0,67323.0,0.14431993]
[1718291075573,0.000946,67330.0,67323.0,0.14431993]
[1718291075574,0.148527,67328.0,67323.0,0.14431993]
[1718291075783,0.00738,67327.0,67323.0,0.14431993]
[1718291076153,0.00738,67324.0,67323.0,0.15031993]
[1718291076392,0.155911,67326.0,67323.0,0.15031993]
[1718291076596,0.148533,67325.0,67323.0,0.15031993]
[1718291076800,0.00738,67327.0,67324.0,0.12322098]
[1718291077003,0.00738,67327.0,67325.0,0.14431993]
[1718291077339,0.148526,67328.0,67325.0,0.14431993]
[1718291077547,0.000946,67330.0,67325.0,0.14431993]
[1718291077904,0.149469,67330.0,67325.0,0.14431993]
[1718291078391,0.00738,67327.0,67325.0,0.14431993]
[1718291078844,0.155908,67327.0,67326.0,0.12321993]
[1718291079081,0.155908,67327.0,67326.0,0.26753986]
[1718291080241,0.148528,67327.0,67326.0,0.26753986]
[1718291080455,0.008326,67330.0,67326.0,0.26753986]
[1718291080667,0.00738,67327.0,67326.0,0.27353986]
[1718291080872,0.00738,67327.0,67326.0,0.15031993]
[1718291081075,0.148528,67327.0,67326.0,0.15031993]
[1718291081652,0.148528,67327.0,67326.0,0.27354168]
[1718291082352,0.148528,67327.0,67326.0,0.27054168]
[1718291082554,0.148528,67327.0,67326.0,0.26754168]
[1718291082770,0.148528,67327.0,67326.0,0.27054168]
[1718291082975,0.148528,67327.0,67326.0,0.15031993]
[1718291083151,0.148528,67327.0,67326.0,0.14731993]
[1718291083331,0.149468,67330.0,67326.0,0.14431993]
[1718291083535,0.149468,67330.0,67326.0,0.14731993]
[1718291083733,0.000946,67330.0,67329.0,0.07215996]
[1718291084905,0.000946,67330.0,67329.0,0.21647989]
[1718291087994,0.000946,67330.0,67329.0,0.37500389]
[1718291088192,0.000946,67330.0,67329.0,0.38900389]
[1718291088371,0.000946,67330.0,67329.0,0.69702821]
[1718291088810,0.000946,67330.0,67329.0,0.54850421]
[1718291088956,0.000946,67330.0,67329.0,0.69702821]
[1718291089371,0.000946,67330.0,67329.0,0.72502821]
[1718291089792,0.000946,67330.0,67329.0,1.27502821]
[1718291089997,0.000946,67330.0,67329.0,1.06250421]
[1718291090203,0.000946,67330.0,67329.0,0.55250421]
[1718291090392,0.149468,67330.0,67329.0,0.24447989]
[1718291090798,0.261568,67330.0,67329.0,0.14431993]
[1718291090973,0.268948,67330.0,67329.0,0.14431993]
[1718291091729,0.261568,67330.0,67329.0,0.14431993]
[1718291092342,0.268948,67330.0,67329.0,0.15831993]
[1718291092579,0.268948,67330.0,67329.0,0.17231993]
[1718291092792,0.268948,67330.0,67329.0,0.14881993]
[1718291092919,0.413348,67330.0,67329.0,0.13481993]
[1718291093127,0.413348,67330.0,67329.0,0.14381993]
[1718291093328,0.413348,67330.0,67329.0,0.15381993]
[1718291093938,0.710392,67330.0,67329.0,0.019]
[1718291094161,0.593448,67330.0,67329.0,0.019]
[1718291094363,0.405968,67330.0,67329.0,0.019]
[1718291094737,0.413348,67330.0,67329.0,0.019]
[1718291095329,0.413348,67330.0,67329.0,0.01]
[1718291095754,0.413348,67330.0,67329.0,0.009]
[1718291095927,0.156848,67330.0,67329.0,0.009]
[1718291096125,0.156848,67330.0,67321.0,0.00594105]
[1718291096393,0.156848,67330.0,67328.0,0.07215996]
[1718291096591,0.156848,67330.0,67322.0,0.14431993]
[1718291096592,0.00738,67329.0,67322.0,0.14431993]
[1718291096812,0.148536,67324.0,67322.0,0.14431993]
[1718291097026,0.148537,67323.0,67322.0,0.14431993]
[1718291097262,0.001946,67330.0,67329.0,0.148524]
[1718291097263,0.000946,67330.0,67329.0,0.148524]
[1718291097467,0.000946,67330.0,67329.0,0.14431993]
[1718291097690,0.008326,67330.0,67329.0,0.14431993]
[1718291097893,0.000946,67330.0,67329.0,0.14431993]
[1718291098111,0.000946,67330.0,67321.0,0.07215996]
[1718291098325,0.000946,67330.0,67329.0,0.07215996]
[1718291098888,0.156848,67330.0,67329.0,0.07215996]
[1718291099832,0.156848,67330.0,67329.0,0.07415996]
[1718291100127,0.156848,67330.0,67329.0,0.07215996]
[1718291100345,0.156848,67330.0,67329.0,0.07415996]
[1718291100568,0.643992,67330.0,67329.0,0.004]
[1718291100779,0.941036,67330.0,67329.0,0.002]
[1718291100988,0.00738,67323.0,67313.0,0.11658555]
[1718291101188,0.148542,67321.0,67320.0,0.07215996]
[1718291101828,0.155922,67321.0,67320.0,0.07215996]
[1718291102544,0.00738,67315.0,67314.0,0.14431993]
[1718291102744,0.00738,67315.0,67311.0,0.04442559]
[1718291102745,0.148561,67312.0,67311.0,0.04442559]
[1718291102981,0.148561,67312.0,67311.0,0.21647989]
[1718291103128,0.155941,67312.0,67311.0,0.21647989]
[1718291103338,0.148561,67312.0,67311.0,0.21647989]
[1718291104148,0.148561,67312.0,67311.0,0.23047989]
[1718291104357,0.148554,67316.0,67311.0,0.23047989]
[1718291104577,0.148554,67316.0,67312.0,0.14431993]
[1718291104775,0.2477,67320.0,67313.0,0.01]
[1718291104983,0.2477,67320.0,67319.0,0.07215996]
[1718291105183,0.403624,67320.0,67319.0,0.07215996]
[1718291105811,0.155941,67312.0,67311.0,0.014]
[1718291106238,0.155941,67312.0,67311.0,0.028]
[1718291106239,0.62318,67312.0,67311.0,0.028]
[1718291106450,1.158587,67312.0,67311.0,0.028]
[1718291106662,1.168587,67312.0,67311.0,0.014]
[1718291107550,0.453144,67300.0,67296.0,0.00017887]
[1718291109128,0.463144,67300.0,67296.0,0.00017887]
[1718291109329,1.1082605,67300.0,67296.0,0.00017887]
[1718291110295,1.1122605,67300.0,67296.0,0.00017887]
[1718291110591,1.1082605,67300.0,67296.0,0.00017887]
[1718291111231,1.1152605,67300.0,67296.0,0.00017887]
[1718291111662,0.8180845,67300.0,67296.0,0.00017887]
[1718291111880,0.701044,67300.0,67296.0,0.00017887]
[1718291112278,0.99822,67300.0,67296.0,0.00017887]
[1718291112684,0.445785,67297.0,67296.0,0.00017887]
[1718291112899,0.633265,67297.0,67296.0,0.00017887]
[1718291113097,1.237645,67297.0,67296.0,0.00017887]
[1718291113319,0.930455,67297.0,67296.0,0.00017887]
[1718291113616,1.448545,67297.0,67296.0,0.00017887]
[1718291113818,1.99005493,67297.0,67296.0,0.00017887]
[1718291114099,1.99005493,67297.0,67286.0,0.00086]
[1718291114100,0.455851,67287.0,67286.0,0.00086]
[1718291114308,1.746545,67287.0,67286.0,0.00086]
[1718291114736,2.28809893,67287.0,67286.0,0.00086]
[1718291114940,1.99086493,67287.0,67286.0,0.00086]
[1718291115355,2.28809893,67287.0,67286.0,0.00086]
[1718291115992,2.43241886,67287.0,67286.0,0.00086]
[1718291116928,0.01738,67277.0,67267.0,0.46436]
[1718291117159,0.26815,67263.0,67257.0,0.46484]
[1718291117405,0.26815,67263.0,67257.0,0.00048]
[1718291117406,1.04263,67263.0,67257.0,0.00048]
[1718291117875,1.43977,67263.0,67257.0,0.00048]
[1718291118354,1.75357487,67263.0,67257.0,0.00048]
[1718291118844,1.85357487,67263.0,67257.0,0.00048]
[1718291119299,1.8177948,67263.0,67257.0,0.00048]
[1718291119528,1.79132993,67263.0,67257.0,0.00048]
[1718291119744,1.67408993,67263.0,67257.0,0.00048]
[1718291119980,1.68408993,67263.0,67257.0,0.00048]
[1718291120200,1.67708993,67263.0,67262.0,0.0145835]
[1718291120460,1.23543,67263.0,67262.0,0.0145835]
[1718291120685,0.94495,67263.0,67262.0,0.0135835]
[1718291120925,0.68418,67263.0,67262.0,0.0135835]
[1718291121165,0.59738,67263.0,67262.0,0.15890343]
[1718291121388,0.60038,67263.0,67262.0,0.15990343]
[1718291121607,0.60038,67263.0,67262.0,0.16990343]
[1718291121778,0.59738,67263.0,67262.0,0.31757543]
[1718291122143,0.59738,67263.0,67262.0,0.84057543]
[1718291122368,0.59738,67263.0,67262.0,1.29687543]
[1718291122824,0.00738,67291.0,67275.0,0.01]
[1718291123038,0.246705,67293.0,67276.0,0.14431993]
[1718291123039,0.00738,67283.0,67276.0,0.14431993]
[1718291123275,0.1801,67287.0,67282.0,0.07215996]
[1718291123505,0.59449,67286.0,67282.0,0.07215996]
[1718291124330,0.59449,67286.0,67284.0,0.01]
[1718291124598,0.59449,67286.0,67284.0,0.15431993]
[1718291124814,0.59449,67286.0,67285.0,0.15987256]
[1718291125041,0.59449,67286.0,67285.0,0.43149356]
[1718291125248,0.59449,67286.0,67285.0,0.73224093]
[1718291125456,0.59449,67286.0,67285.0,0.81194093]
[1718291125667,0.59449,67286.0,67285.0,0.58361993]
[1718291125877,0.59449,67286.0,67285.0,0.27731993]
[1718291126324,0.59449,67286.0,67285.0,0.42731993]
[1718291126531,0.59449,67286.0,67285.0,0.63361993]
[1718291127184,0.59449,67286.0,67285.0,0.64261993]
[1718291127615,0.59449,67286.0,67285.0,0.63361993]
[1718291128067,0.59449,67286.0,67285.0,0.64761993]
[1718291128418,0.59449,67286.0,67285.0,0.32731993]
[1718291128617,0.59449,67286.0,67285.0,0.26731993]
[1718291128871,0.59449,67286.0,67285.0,0.17231993]
[1718291129494,0.59449,67286.0,67285.0,0.18231993]
[1718291129699,0.59449,67286.0,67285.0,1.08861993]
[1718291129907,0.59449,67286.0,67285.0,1.40783993]
[1718291130114,0.00738,67316.0,67301.0,0.01]
[1718291130314,0.148563,67312.0,67305.0,0.01]
[1718291130516,0.148563,67312.0,67306.0,0.21647989]
[1718291130687,0.118,67318.0,67306.0,0.21647989]
[1718291130688,0.00738,67309.0,67306.0,0.14431993]
[1718291130887,0.00738,67302.0,67296.0,0.46436]
[1718291131099,0.00738,67302.0,67296.0,0.14431993]
[1718291131300,0.239682,67303.0,67296.0,0.14431993]
[1718291131301,0.0911,67303.0,67298.0,0.07215996]
[1718291131730,0.0911,67303.0,67301.0,0.004]
[1718291131944,0.09848,67303.0,67302.0,0.00437223]
[1718291132378,0.09848,67303.0,67298.0,0.07215996]
[1718291132379,0.148587,67301.0,67298.0,0.07215996]
[1718291132720,0.1139,67302.0,67298.0,0.07215996]
[1718291133337,0.148588,67300.0,67298.0,0.07215996]
[1718291134419,0.148588,67300.0,67298.0,0.07515996]
[1718291134937,0.148588,67300.0,67298.0,0.07215996]
[1718291135136,0.01,67316.0,67298.0,0.07215996]
[1718291135137,0.095,67307.0,67299.0,0.14431993]
[1718291135371,0.00738,67302.0,67298.0,0.08815996]